bitfinex-derivatives/quotes_BTCF0:USTF0_20250313
["timestamp","ask_amount","ask_price","bid_price","bid_amount"]
[1741888552831,0.13743713,80105.0,80104.0,0.04]
[1741888553026,0.13743713,80105.0,80103.0,0.00018724]
[1741888553027,0.1248601,80104.0,80103.0,0.00018724]
[1741888553228,0.13690688,80104.0,80103.0,0.00018724]
[1741888553430,0.36180688,80104.0,80103.0,0.12504894]
[1741888553940,0.35780688,80104.0,80103.0,0.12504894]
[1741888554143,0.12694678,80104.0,80103.0,0.12504894]
[1741888554330,8e-08,80104.0,80103.0,0.12504894]
[1741888554527,8e-08,80104.0,80103.0,0.34714894]
[1741888555043,8e-08,80104.0,80103.0,0.62814894]
[1741888555446,8e-08,80104.0,80103.0,0.62914894]
[1741888557542,0.14697705,80116.0,80103.0,0.50428724]
[1741888557840,0.2497179,80108.0,80107.0,0.0624255]
[1741888559243,0.26169325,80108.0,80107.0,0.0624255]
[1741888559738,0.26156971,80108.0,80107.0,0.0624255]
[1741888560241,0.124857,80106.0,80103.0,0.22328724]
[1741888560441,0.1248601,80104.0,80103.0,0.00018724]
[1741888560744,0.13668361,80104.0,80103.0,0.00018724]
[1741888560942,0.3524601,80104.0,80103.0,0.00018724]
[1741888561243,0.2399601,80104.0,80103.0,0.12504894]
[1741888561647,0.2399601,80104.0,80103.0,0.23344894]
[1741888561846,0.1151,80104.0,80103.0,0.34454894]
[1741888562236,0.2399601,80104.0,80103.0,0.34554894]
[1741888562742,0.2399601,80104.0,80103.0,0.11058724]
[1741888563039,0.2399601,80104.0,80103.0,0.00218724]
[1741888563240,0.124882,80090.0,80084.0,0.1248908]
[1741888563442,0.124882,80090.0,80076.0,0.0624516]
[1741888563443,0.124882,80090.0,80082.0,0.2283]
[1741888563743,0.1873385,80085.0,80084.0,0.1248898]
[1741888564147,0.4101385,80085.0,80084.0,0.1248898]
[1741888564650,0.1248929,80083.0,80082.0,0.1806464]
[1741888564846,0.1248929,80083.0,80082.0,0.1182]
[1741888564847,0.12401168,80083.0,80082.0,0.1182]
[1741888565144,0.12401168,80083.0,80076.0,0.00018724]
[1741888565145,0.1209022,80077.0,80076.0,0.12509104]
[1741888565746,0.1099022,80077.0,80076.0,0.12509104]
[1741888565952,0.3327022,80077.0,80076.0,0.12509104]
[1741888566169,0.33282098,80077.0,80076.0,0.00018724]
[1741888566369,0.33282098,80077.0,80010.0,1.31301503]
[1741888566370,0.23526751,80077.0,80057.0,0.1097]
[1741888566670,0.1249256,80062.0,80061.0,0.5465021]
[1741888566871,0.24724715,80077.0,80069.0,0.1249132]
[1741888567063,0.07432678,80076.0,80075.0,0.1249038]
[1741888567362,0.01208314,80076.0,80075.0,0.1249038]
[1741888567570,0.12478314,80076.0,80070.0,0.0624564]
[1741888567865,0.12478314,80076.0,80067.0,0.0625837]
[1741888567866,0.1249163,80068.0,80067.0,0.1250391]
[1741888568165,0.109,80075.0,80067.0,0.0001249]
[1741888568166,0.1873732,80072.0,80067.0,0.0001249]
[1741888568357,0.1863732,80072.0,80071.0,0.1249085]
[1741888569156,0.0624528,80075.0,80074.0,0.1249038]
[1741888569357,0.01159477,80075.0,80074.0,0.1249038]
[1741888569660,0.0624445,80086.0,80070.0,0.0624543]
[1741888569661,0.6876,80087.0,80081.0,0.1248929]
[1741888569965,0.01159185,80083.0,80082.0,0.1248929]
[1741888570267,0.01248365,80085.0,80083.0,0.1248929]
[1741888570769,0.01168002,80084.0,80083.0,0.1248929]
[1741888571061,0.13657132,80084.0,80083.0,0.1248929]
[1741888571263,0.28354837,80084.0,80083.0,0.1248929]
[1741888571465,0.15865707,80084.0,80076.0,0.16312]
[1741888571669,0.1249147,80069.0,80068.0,0.3016691]
[1741888572270,0.0624565,80071.0,80062.0,0.16312]
[1741888572271,0.1249163,80068.0,80062.0,0.16312]
[1741888572565,0.13720415,80068.0,80067.0,0.1250427]
[1741888573964,0.01228785,80068.0,80067.0,0.1250427]
[1741888574172,0.6876,80087.0,80067.0,0.0001249]
[1741888574366,0.1873736,80071.0,80070.0,0.2498104]
[1741888575069,0.68912,80087.0,80083.0,0.1248929]
[1741888575070,0.39696019,80084.0,80083.0,0.1248929]
[1741888575267,0.15854575,80084.0,80083.0,0.1248929]
[1741888575571,0.28343705,80084.0,80083.0,0.1248929]
[1741888575773,0.2959758,80084.0,80083.0,0.1248929]
[1741888575973,0.1249132,80070.0,80069.0,0.2498183]
[1741888576175,0.1249132,80070.0,80069.0,0.3747252]
[1741888576471,0.1249132,80070.0,80069.0,0.062455]
[1741888576672,0.15928074,80084.0,80063.0,0.0624618]
[1741888576972,0.13627719,80083.0,80082.0,0.1248944]
[1741888577565,0.01138279,80083.0,80082.0,0.1248944]
[1741888577761,0.16328074,80084.0,80082.0,0.1248944]
[1741888577762,0.15116429,80084.0,80083.0,0.1248929]
[1741888578070,0.70287467,80110.0,80084.0,0.0624454]
[1741888578071,0.00144,80110.0,80084.0,0.0624454]
[1741888578273,8e-08,80096.0,80095.0,0.1248742]
[1741888578474,8e-08,80096.0,80095.0,0.2879542]
[1741888578673,8e-08,80096.0,80095.0,0.5179542]
[1741888581073,0.1248851,80089.0,80088.0,0.1248815]
[1741888581274,0.1248742,80095.0,80094.0,0.1248742]
[1741888581576,0.01169732,80095.0,80094.0,0.1248742]
[1741888581968,0.00200008,80096.0,80094.0,0.1248742]
[1741888582177,0.00200008,80096.0,80095.0,0.1248742]
[1741888582372,0.002,80096.0,80095.0,0.1248742]
[1741888582567,0.01369732,80096.0,80095.0,0.1248742]
[1741888582878,0.01169732,80096.0,80095.0,0.1248742]
[1741888583177,0.1248695,80100.0,80099.0,0.1248633]
[1741888583372,0.1248695,80100.0,80099.0,0.1872958]
[1741888583373,0.14796511,80100.0,80099.0,0.1872958]
[1741888583574,0.02309561,80100.0,80099.0,0.1872958]
[1741888584182,0.02309561,80100.0,80099.0,0.3502958]
[1741888584481,0.1248402,80119.0,80118.0,0.1248341]
[1741888584673,0.2370402,80119.0,80118.0,0.1248341]
[1741888584879,0.1122,80119.0,80110.0,0.163]
[1741888585079,0.1248492,80112.0,80111.0,0.2420458]
[1741888585473,0.1122,80113.0,80111.0,0.4808922]
[1741888585673,0.1086,80118.0,80117.0,0.1248399]
[1741888586087,0.3456383,80118.0,80117.0,0.1248399]
[1741888586985,0.3486383,80118.0,80117.0,0.1248399]
[1741888587786,0.2238,80118.0,80117.0,0.1248399]
[1741888587972,0.003,80118.0,80117.0,0.1248399]
[1741888588178,0.6237058,80181.0,80131.0,0.1248181]
[1741888588179,0.00187307,80134.0,80131.0,0.1248181]
[1741888588485,0.18909607,80134.0,80133.0,0.1248149]
[1741888588688,0.00187307,80134.0,80133.0,0.1248149]
[1741888589187,0.00934148,80147.0,80133.0,0.21533906]
[1741888589383,0.00934148,80147.0,80146.0,0.1247947]
[1741888590083,0.40496102,80175.0,80161.0,0.1247713]
[1741888590084,0.37971955,80162.0,80161.0,0.1247713]
[1741888590275,0.1247729,80160.0,80159.0,0.0623866]
[1741888592087,0.1297729,80160.0,80159.0,0.0633866]
[1741888592293,0.1347729,80160.0,80159.0,0.0633866]
[1741888592589,0.01,80160.0,80159.0,0.0633866]
[1741888592789,0.1347729,80160.0,80159.0,0.001]
[1741888593186,0.1248056,80139.0,80138.0,0.00187165]
[1741888593379,0.1248056,80139.0,80138.0,0.16667885]
[1741888593587,0.1871992,80145.0,80144.0,0.1247978]
[1741888593892,0.0623983,80145.0,80144.0,0.1247978]
[1741888594190,0.1871848,80152.0,80151.0,0.1247807]
[1741888594387,0.1247794,80159.0,80158.0,0.1247745]
[1741888594683,0.0623941,80153.0,80151.0,0.12478]
[1741888594887,0.1871795,80153.0,80152.0,0.1247854]
[1741888595083,0.0623886,80158.0,80154.0,0.0623909]
[1741888595291,0.0623886,80158.0,80157.0,0.1247776]
[1741888595487,0.18734962,80160.0,80159.0,0.1247745]
[1741888595788,0.18734962,80160.0,80148.0,0.36455503]
[1741888595789,0.1247807,80156.0,80155.0,0.1247796]
[1741888595990,0.1871795,80153.0,80152.0,0.124785]
[1741888596186,0.0673926,80153.0,80152.0,0.124785]
[1741888596690,0.12479,80149.0,80148.0,0.3500229]
[1741888596989,0.0623941,80151.0,80150.0,0.1247885]
[1741888597181,0.005,80153.0,80152.0,0.1247854]
[1741888597491,0.1297838,80153.0,80152.0,0.1247854]
[1741888597688,0.005,80156.0,80148.0,0.16284]
[1741888597893,0.005,80156.0,80155.0,0.1247807]
[1741888598080,0.1297791,80156.0,80155.0,0.1247807]
[1741888598285,0.1297791,80156.0,80155.0,0.1647807]
[1741888598477,0.1247791,80156.0,80155.0,0.1647807]
[1741888598792,0.00018712,80160.0,80159.0,0.1247745]
[1741888599692,0.00018712,80160.0,80157.0,0.062388]
[1741888599988,0.12479,80149.0,80148.0,0.1247881]
[1741888600294,0.12479,80149.0,80148.0,0.3275481]
[1741888600494,0.0623895,80157.0,80150.0,0.1247869]
[1741888600683,0.00518712,80160.0,80150.0,0.04]
[1741888600880,0.00518712,80160.0,80145.0,0.0623978]
[1741888600881,0.1247947,80146.0,80145.0,0.0623978]
[1741888601590,0.1248009,80143.0,80142.0,0.1248]
[1741888601894,0.1248009,80143.0,80142.0,0.1648]
[1741888602689,0.1248009,80143.0,80129.0,0.06]
[1741888602690,0.0623965,80147.0,80105.0,0.4088]
[1741888602995,0.1248087,80137.0,80128.0,0.1248217]
[1741888603189,0.1248087,80137.0,80128.0,0.1248215]
[1741888603381,0.1248087,80137.0,80130.0,0.1248191]
[1741888603696,0.1248087,80137.0,80129.0,0.0624101]
[1741888603894,0.1248087,80137.0,80136.0,0.12499742]
[1741888604397,0.235108,80138.0,80137.0,0.1248087]
[1741888604782,0.1248087,80137.0,80136.0,0.00018712]
[1741888604981,0.1278087,80137.0,80136.0,0.00018712]
[1741888605186,0.1278087,80137.0,80136.0,0.12499742]
[1741888605383,0.2434087,80137.0,80136.0,0.12499742]
[1741888605588,0.2404087,80137.0,80136.0,0.12499742]
[1741888605892,0.2424087,80137.0,80136.0,0.12499742]
[1741888606498,0.2424087,80137.0,80136.0,0.00018712]
[1741888607393,0.1176,80137.0,80136.0,0.12499742]
[1741888607694,0.2424087,80137.0,80136.0,0.00018712]
[1741888608089,0.2454087,80137.0,80136.0,0.00018712]
[1741888608595,0.2454087,80137.0,80131.0,0.00187172]
[1741888608596,0.1248165,80132.0,80131.0,0.00187172]
[1741888609695,0.1248165,80132.0,80119.0,0.1065]
[1741888609696,0.1248523,80109.0,80108.0,0.16268]
[1741888609894,0.0624253,80111.0,80103.0,0.0624302]
[1741888610091,0.1872893,80106.0,80105.0,0.0624286]
[1741888610397,0.0624292,80106.0,80102.0,0.1693315]
[1741888610605,0.1248601,80104.0,80103.0,0.1248603]
[1741888610899,0.1248601,80104.0,80103.0,0.1648603]
[1741888611195,0.1248601,80104.0,80103.0,0.2753603]
[1741888612106,0.1248601,80104.0,80103.0,0.3870603]
[1741888612599,0.1258601,80104.0,80103.0,0.2353617]
[1741888612804,0.1268601,80104.0,80103.0,0.2353617]
[1741888613191,0.1268601,80104.0,80103.0,0.3470617]
[1741888613797,0.1248648,80101.0,80100.0,0.00018725]
[1741888613996,0.1248648,80101.0,80100.0,0.12505365]
[1741888614198,0.1248648,80101.0,80100.0,0.00018725]
[1741888615104,0.1258648,80101.0,80100.0,0.00018725]
[1741888615299,0.1268648,80101.0,80100.0,0.00018725]
[1741888615698,0.1298648,80101.0,80100.0,0.00018725]
[1741888616397,0.02419312,80101.0,80095.0,0.00014216]
[1741888616603,0.1248804,80091.0,80081.0,0.1248956]
[1741888616799,0.12596679,80100.0,80071.0,0.07167413]
[1741888616800,0.16264,80098.0,80071.0,0.00921903]
[1741888617002,0.0624541,80074.0,80073.0,0.1249072]
[1741888617512,0.1741541,80074.0,80073.0,0.1249072]
[1741888618412,0.00018725,80082.0,80073.0,0.1154]
[1741888618593,0.00018725,80082.0,80081.0,0.124896]
[1741888619004,0.13670637,80082.0,80081.0,0.124896]
[1741888619208,0.13670637,80082.0,80081.0,0.351396]
[1741888619711,0.13970637,80082.0,80081.0,0.1111]
[1741888619909,0.13970637,80082.0,80069.0,0.0624568]
[1741888619910,0.1249132,80071.0,80070.0,0.1249067]
[1741888620111,0.1249132,80071.0,80070.0,0.2360067]
[1741888620301,0.12808485,80082.0,80081.0,0.124896]
[1741888620497,0.13008165,80082.0,80081.0,0.124896]
[1741888620895,0.13008165,80082.0,80081.0,0.235996]
[1741888621109,0.13008165,80082.0,80081.0,0.353196]
[1741888621603,0.0624574,80071.0,80070.0,0.1873602]
[1741888621794,0.14191497,80082.0,80081.0,0.124896]
[1741888621993,0.13991497,80082.0,80081.0,0.124896]
[1741888622509,0.14291497,80082.0,80081.0,0.124896]
[1741888622706,0.13991497,80082.0,80081.0,0.124896]
[1741888623008,0.01501937,80082.0,80070.0,0.1172]
[1741888623308,0.1249116,80071.0,80070.0,0.4216636]
[1741888623695,0.1101,80072.0,80071.0,0.1249116]
[1741888623903,0.0624519,80076.0,80073.0,0.1249085]
[1741888624203,0.3439976,80080.0,80079.0,0.1248991]
[1741888624399,0.23095499,80080.0,80065.0,0.00018725]
[1741888624605,0.1873758,80069.0,80068.0,0.187362]
[1741888624799,0.0624531,80075.0,80067.0,0.1111]
[1741888625104,0.1096,80068.0,80067.0,0.2360178]
[1741888625298,0.1096,80068.0,80067.0,0.3530178]
[1741888625500,0.2345163,80068.0,80067.0,0.3530178]
[1741888625703,0.2345163,80068.0,80067.0,0.2281]
[1741888625903,0.2345163,80068.0,80067.0,0.1111]
[1741888626098,0.24664894,80068.0,80067.0,0.1111]
[1741888626508,0.24664894,80068.0,80066.0,0.124919]
[1741888626809,0.19634566,80068.0,80067.0,0.3530178]
[1741888626998,0.18421302,80068.0,80067.0,0.3530178]
[1741888627513,0.19641736,80068.0,80067.0,0.3530178]
[1741888627814,0.19641736,80068.0,80067.0,0.2281]
[1741888628112,0.19641736,80068.0,80067.0,0.3530178]
[1741888628308,0.18426314,80068.0,80067.0,0.3530178]
[1741888628513,0.18426314,80068.0,80067.0,0.1111]
[1741888628812,0.18426314,80068.0,80067.0,0.2360178]
[1741888629715,0.18426314,80068.0,80067.0,0.1111]
[1741888629919,0.18426314,80068.0,80065.0,0.00018725]
[1741888629920,0.1249194,80066.0,80065.0,0.00018725]
[1741888630417,0.13693682,80066.0,80065.0,0.12510825]
[1741888630606,0.26044116,80066.0,80065.0,0.12510825]
[1741888630807,0.24842374,80066.0,80065.0,0.00018725]
[1741888631007,0.24842374,80066.0,80065.0,0.12510825]
[1741888631208,0.01220434,80066.0,80065.0,0.35100825]
[1741888631403,0.13712374,80066.0,80065.0,0.35100825]
[1741888631915,0.01220434,80066.0,80065.0,0.35100825]
[1741888633015,0.0624495,80080.0,80077.0,0.0624504]
[1741888633217,0.0624495,80080.0,80078.0,0.2171]
[1741888633218,0.27242477,80079.0,80078.0,0.2171]
[1741888633518,0.41565934,80079.0,80078.0,0.1089]
[1741888633708,0.41565934,80079.0,80078.0,0.2338007]
[1741888634012,0.01212409,80079.0,80078.0,0.2338007]
[1741888634517,0.21952942,80104.0,80078.0,0.58377746]
[1741888634718,0.22092943,80104.0,80098.0,0.1248695]
[1741888634923,0.30901636,80099.0,80098.0,0.1248695]
[1741888635217,0.18414846,80099.0,80098.0,0.1248695]
[1741888635520,0.18414846,80099.0,80097.0,0.1082]
[1741888635709,0.0624378,80094.0,80090.0,0.00018725]
[1741888635905,0.1248804,80091.0,80090.0,0.12506705]
[1741888636912,0.1248804,80091.0,80090.0,0.00018725]
[1741888638116,0.01457995,80091.0,80077.0,0.1249008]
[1741888638413,0.0624495,80080.0,80076.0,0.1103]
[1741888638616,0.1249022,80077.0,80076.0,0.2352007]
[1741888638810,0.1249022,80077.0,80076.0,0.360102]
[1741888639012,0.1873758,80069.0,80068.0,0.1249151]
[1741888639216,0.062458,80069.0,80068.0,0.1249151]
[1741888639721,0.0624529,80075.0,80070.0,0.0624558]
[1741888639911,0.1249079,80074.0,80073.0,0.1249069]
[1741888641118,0.104,80076.0,80073.0,0.1249069]
[1741888641319,0.00318725,80077.0,80076.0,0.1249038]
[1741888641518,0.12608945,80077.0,80076.0,0.1249038]
[1741888642215,0.14064536,80077.0,80076.0,0.1249038]
[1741888642415,0.24774536,80077.0,80076.0,0.1249038]
[1741888642916,0.1873806,80067.0,80066.0,0.1249142]
[1741888643120,0.1249272,80061.0,80060.0,0.00018725]
[1741888643318,0.1395139,80061.0,80060.0,0.12511605]
[1741888644222,0.0135867,80061.0,80060.0,0.12511605]
[1741888644409,0.2147,80076.0,80075.0,0.1249054]
[1741888644722,0.00118725,80077.0,80076.0,0.1249038]
[1741888645110,0.13789437,80077.0,80076.0,0.1249038]
[1741888645420,0.13689437,80077.0,80076.0,0.1249038]
[1741888646422,0.0624557,80072.0,80060.0,0.10718725]
[1741888646622,0.1249178,80067.0,80064.0,0.1249213]
[1741888646817,0.14858873,80067.0,80066.0,0.1249194]
[1741888647023,0.13637391,80067.0,80066.0,0.1249194]
[1741888647218,0.1364152,80067.0,80066.0,0.1249194]
[1741888647424,0.14822012,80067.0,80066.0,0.1249194]
[1741888647619,0.02330232,80067.0,80060.0,0.10718725]
[1741888647822,0.1249272,80061.0,80060.0,0.12511555]
[1741888648120,0.14822952,80061.0,80060.0,0.00018725]
[1741888648424,0.14822952,80061.0,80060.0,0.12511605]
[1741888649123,0.13673212,80061.0,80060.0,0.00018725]
[1741888649312,0.17825567,80061.0,80060.0,0.00018725]
[1741888649623,0.17925567,80061.0,80060.0,0.00018725]
[1741888650124,0.32993075,80061.0,80060.0,0.00018725]
[1741888650419,0.32993075,80061.0,80049.0,0.37280428]
[1741888650420,0.1249319,80058.0,80049.0,0.37280428]
[1741888650625,0.18183489,80058.0,80050.0,0.1249431]
[1741888650830,0.18183489,80058.0,80052.0,0.1249409]
[1741888651030,0.16645545,80058.0,80052.0,0.1249409]
[1741888651319,0.16645545,80058.0,80049.0,0.37280428]
[1741888651320,0.00624927,80059.0,80058.0,0.1249319]
[1741888651526,0.004,80061.0,80060.0,0.1249288]
[1741888651817,0.002,80061.0,80060.0,0.1249288]
[1741888652618,0.272372,80063.0,80062.0,0.1249256]
[1741888653023,0.1474467,80063.0,80062.0,0.1249256]
[1741888653322,0.2723708,80063.0,80062.0,0.1249256]
[1741888653521,0.1873992,80059.0,80058.0,0.124931]
[1741888654115,0.1873992,80059.0,80051.0,0.39836118]
[1741888654116,0.1249412,80052.0,80051.0,0.22229028]
[1741888654316,0.0624697,80054.0,80051.0,0.34723308]
[1741888654624,0.1874016,80058.0,80057.0,0.0624665]
[1741888654926,0.20162739,80058.0,80057.0,0.0624665]
[1741888655930,0.42042739,80058.0,80057.0,0.0624665]
[1741888656518,0.42046497,80058.0,80057.0,0.0624665]
[1741888656719,0.4062016,80058.0,80057.0,0.0624665]
[1741888656923,0.2822666,80058.0,80057.0,0.0624665]
[1741888657320,0.0654666,80058.0,80057.0,0.1681665]
[1741888657521,0.1249334,80057.0,80056.0,0.2363345]
[1741888657924,0.3478334,80057.0,80056.0,0.2363345]
[1741888658418,0.2229,80057.0,80056.0,0.2363345]
[1741888658723,0.2340334,80057.0,80056.0,0.2363345]
[1741888659026,0.1101,80057.0,80056.0,0.2363345]
[1741888659219,0.2350334,80057.0,80056.0,0.2363345]
[1741888659415,0.1111,80057.0,80056.0,0.2363345]
[1741888659620,0.002,80057.0,80056.0,0.2363345]
[1741888660125,0.2340108,80072.0,80056.0,0.2363345]
[1741888660126,0.1091,80072.0,80058.0,0.0624652]
[1741888660322,0.1249225,80068.0,80067.0,0.1249147]
[1741888661032,0.1249225,80068.0,80067.0,0.3463147]
[1741888661328,0.1084,80069.0,80050.0,1.46432693]
[1741888661623,0.1249334,80057.0,80056.0,0.1081]
[1741888662217,0.1249334,80057.0,80056.0,0.233035]
[1741888662418,0.3378334,80057.0,80056.0,0.234035]
[1741888662934,0.3378334,80057.0,80056.0,0.1081]
[1741888663132,0.3388334,80057.0,80056.0,0.233035]
[1741888663433,0.2139,80057.0,80055.0,0.1249351]
[1741888663623,0.2139,80057.0,80056.0,0.124935]
[1741888663829,0.3388334,80057.0,80056.0,0.339535]
[1741888664024,0.3388334,80057.0,80056.0,0.2146]
[1741888664324,0.1249419,80052.0,80050.0,0.0624714]
[1741888664527,0.3439428,80051.0,80050.0,0.4074158]
[1741888665328,0.3439428,80051.0,80050.0,0.2824714]
[1741888665530,0.3439428,80051.0,80050.0,0.2834714]
[1741888665832,0.0624664,80058.0,80050.0,0.2834714]
[1741888665833,0.12511997,80059.0,80058.0,0.1249319]
[1741888666333,0.10888737,80059.0,80058.0,0.1249319]
[1741888666529,0.23381767,80059.0,80058.0,0.2384319]
[1741888667126,0.23481767,80059.0,80058.0,0.2384319]
[1741888667525,0.23481767,80059.0,80058.0,0.1135]
[1741888668029,0.23481767,80059.0,80058.0,0.2384319]
[1741888668224,0.10988737,80059.0,80053.0,0.1249392]
[1741888668419,0.1249444,80050.0,80049.0,0.00012554]
[1741888669021,0.12496,80040.0,80039.0,0.0001039]
[1741888669927,0.12396,80040.0,80039.0,0.0001039]
[1741888670128,0.23336,80040.0,80039.0,0.0001039]
[1741888670324,0.1249709,80033.0,80032.0,0.22229028]
[1741888670534,0.1239709,80033.0,80032.0,0.22229028]
[1741888671035,0.1249725,80032.0,80031.0,0.00018737]
[1741888671238,0.3472725,80032.0,80031.0,0.00018737]
[1741888671626,0.1249928,80019.0,80018.0,0.2499835]
[1741888672233,0.1094,80024.0,80018.0,0.1249893]
[1741888672425,0.01173911,80019.0,80018.0,0.2285893]
[1741888673429,0.13673191,80019.0,80018.0,0.2285893]
[1741888674035,0.01273911,80019.0,80018.0,0.2285893]
[1741888674229,0.02416845,80019.0,80018.0,0.2285893]
[1741888674631,0.14816125,80019.0,80018.0,0.2285893]
[1741888674839,0.02316845,80019.0,80018.0,0.2285893]
[1741888675228,0.01173911,80019.0,80018.0,0.2285893]
[1741888675439,0.2158,80023.0,80018.0,0.1036]
[1741888675736,0.1874877,80021.0,80020.0,0.187483]
[1741888676033,0.2158,80023.0,80020.0,0.187483]
[1741888676034,0.2158,80023.0,80022.0,0.1249881]
[1741888676631,0.01243997,80027.0,80026.0,0.1249818]
[1741888676940,0.3493774,80031.0,80030.0,0.1249756]
[1741888677643,0.1249771,80029.0,80028.0,0.2499535]
[1741888677941,0.13721799,80029.0,80028.0,0.2499535]
[1741888679039,0.01224089,80029.0,80028.0,0.2499535]
[1741888679235,0.1249771,80029.0,80028.0,0.2499535]
[1741888679831,0.2868877,80031.0,80028.0,0.1249756]
[1741888680036,0.0121737,80036.0,80035.0,0.1249678]
[1741888680438,0.14881881,80036.0,80035.0,0.1249678]
[1741888680947,0.0624924,80025.0,80022.0,0.17500508]
[1741888681138,0.1067,80035.0,80034.0,0.1249693]
[1741888681444,0.2316678,80035.0,80034.0,0.1249693]
[1741888681649,0.2191,80035.0,80034.0,0.1249693]
[1741888681941,0.3440678,80035.0,80034.0,0.1249693]
[1741888682350,0.2316678,80035.0,80034.0,0.1249693]
[1741888683130,0.2336678,80035.0,80034.0,0.1249693]
[1741888683334,0.1087,80035.0,80034.0,0.1249693]
[1741888683542,0.002,80035.0,80034.0,0.1249693]
[1741888683935,0.002,80035.0,80034.0,0.2325693]
[1741888684338,0.004,80035.0,80034.0,0.24484129]
[1741888684639,0.14737379,80049.0,80048.0,0.1249475]
[1741888685047,0.27231969,80049.0,80048.0,0.1249475]
[1741888685543,0.27231969,80049.0,80048.0,0.13768484]
[1741888685944,0.0624744,80048.0,80045.0,0.16228]
[1741888686139,0.124949,80047.0,80046.0,0.235849]
[1741888686644,0.347549,80047.0,80046.0,0.235849]
[1741888686945,0.345549,80047.0,80046.0,0.235849]
[1741888687336,0.345549,80047.0,80040.0,0.00018737]
[1741888687538,0.1249584,80041.0,80040.0,0.00018737]
[1741888687947,0.1249584,80041.0,80040.0,0.23164737]
[1741888688242,0.0624718,80051.0,80046.0,0.1249506]
[1741888688444,0.008,80047.0,80046.0,0.1249506]
[1741888688945,0.0020621,80057.0,80056.0,0.124935]
[1741888689340,0.0020621,80057.0,80056.0,0.13512526]
[1741888689542,0.31121274,80057.0,80056.0,0.124935]
[1741888689840,0.124935,80056.0,80055.0,0.1065]
[1741888690143,0.1249412,80052.0,80051.0,0.1622]
[1741888690344,0.124949,80047.0,80046.0,0.1065]
[1741888690536,0.124949,80047.0,80046.0,0.2314506]
[1741888690732,0.1107,80048.0,80046.0,0.2314506]
[1741888690935,0.2177,80048.0,80047.0,0.124949]
[1741888691345,0.2177,80048.0,80047.0,0.233149]
[1741888691847,0.2319475,80048.0,80047.0,0.233149]
[1741888692040,0.0624696,80054.0,80053.0,0.1874057]
[1741888692241,0.0624696,80054.0,80053.0,0.2956057]
[1741888692743,0.004,80056.0,80055.0,0.1249366]
[1741888692947,0.004,80056.0,80055.0,0.13509402]
[1741888693151,0.18627934,80057.0,80056.0,0.124935]
[1741888693344,0.1269955,80057.0,80056.0,0.124935]
[1741888693548,0.1269955,80057.0,80056.0,0.233135]
[1741888694352,0.3558955,80057.0,80056.0,0.233135]
[1741888694842,0.3558955,80057.0,80056.0,0.1082]
[1741888695042,0.3598955,80057.0,80056.0,0.1082]
[1741888695241,0.3598955,80057.0,80056.0,0.124935]
[1741888695446,0.14720076,80063.0,80056.0,0.27]
[1741888695643,0.14720076,80063.0,80062.0,0.1249256]
[1741888696452,0.14720076,80063.0,80062.0,0.2542256]
[1741888696640,0.14720076,80063.0,80062.0,0.2342256]
[1741888696641,0.27212486,80063.0,80062.0,0.2342256]
[1741888696844,0.1259241,80063.0,80062.0,0.2342256]
[1741888697046,0.1259241,80063.0,80062.0,0.3402256]
[1741888697239,0.1259241,80063.0,80062.0,0.2153]
[1741888697450,0.1259241,80063.0,80062.0,0.106]
[1741888697649,0.1269241,80063.0,80062.0,0.106]
[1741888698046,0.1269241,80063.0,80052.0,0.0624703]
[1741888698047,0.1249475,80050.0,80049.0,0.0624717]
[1741888698251,0.1874204,80050.0,80049.0,0.26]
[1741888698552,0.1874204,80050.0,80049.0,0.22]
[1741888699042,0.1249537,80044.0,80043.0,0.1249542]
[1741888699243,0.0624768,80045.0,80041.0,0.00068]
[1741888699445,0.1249584,80041.0,80040.0,0.12514667]
[1741888699639,0.1678783,80043.0,80040.0,0.00018737]
[1741888699640,0.1054,80043.0,80040.0,0.00018737]
[1741888699843,0.1054,80043.0,80042.0,0.1249568]
[1741888700246,0.1259453,80050.0,80049.0,0.1249459]
[1741888700446,0.1249475,80048.0,80047.0,0.0624738]
[1741888700953,0.0624761,80045.0,80042.0,0.001]
[1741888701156,0.1249553,80043.0,80042.0,0.001]
[1741888701352,0.1239553,80043.0,80042.0,0.001]
[1741888701943,0.3349553,80043.0,80042.0,0.001]
[1741888702456,0.211,80043.0,80042.0,0.1259568]
[1741888702654,0.104,80043.0,80042.0,0.1269568]
[1741888703155,0.2289553,80043.0,80042.0,0.2313568]
[1741888703360,0.2289553,80043.0,80042.0,0.2303568]
[1741888704355,0.2289553,80043.0,80042.0,0.1064]
[1741888705946,0.2289553,80043.0,80042.0,0.2313568]
[1741888706147,0.00018737,80052.0,80042.0,0.2313568]
[1741888706148,0.00018737,80052.0,80051.0,0.1249428]
[1741888707162,0.00018737,80052.0,80051.0,0.1351008]
[1741888707368,0.00118737,80052.0,80051.0,0.3371408]
[1741888708153,0.00218737,80052.0,80051.0,0.3371408]
[1741888708755,0.14720076,80059.0,80058.0,0.1249319]
[1741888708953,0.14720076,80059.0,80056.0,0.0624668]
[1741888709154,0.14720076,80059.0,80057.0,0.5121334]
[1741888709155,0.1249319,80058.0,80057.0,0.5121334]
[1741888709359,0.2213,80058.0,80057.0,0.5121334]
[1741888709662,0.24667884,80064.0,80057.0,0.5121334]
[1741888709663,0.0624569,80070.0,80066.0,0.0624594]
[1741888709858,0.1249163,80068.0,80067.0,0.3476168]
[1741888710058,0.0624553,80072.0,80057.0,0.162]
[1741888710265,0.1249301,80060.0,80059.0,0.18757187]
[1741888710958,0.0624635,80062.0,80061.0,0.1249272]
[1741888711156,0.1249186,80067.0,80066.0,0.1249194]
[1741888711660,0.2299178,80067.0,80066.0,0.1249194]
[1741888711857,0.006,80068.0,80067.0,0.1249178]
[1741888712061,0.006,80068.0,80067.0,0.2357178]
[1741888712564,0.006,80068.0,80067.0,0.3435178]
[1741888712763,0.1309163,80068.0,80063.0,0.1249228]
[1741888712961,0.1249225,80064.0,80063.0,0.1249228]
[1741888713468,0.1249256,80062.0,80061.0,0.0624635]
[1741888714062,0.3492256,80062.0,80061.0,0.0624635]
[1741888714264,0.3492256,80062.0,80061.0,0.1702635]
[1741888715264,0.3532256,80062.0,80061.0,0.1702635]
[1741888715971,0.3532256,80062.0,80061.0,0.1078]
[1741888716163,0.1249272,80061.0,80060.0,0.2345277]
[1741888716659,0.3492272,80061.0,80060.0,0.3497277]
[1741888716972,0.3492272,80061.0,80060.0,0.2248]
[1741888717171,0.3492272,80061.0,80060.0,0.3497288]
[1741888717372,0.3532272,80061.0,80060.0,0.3497288]
[1741888718165,0.3532272,80061.0,80060.0,0.2248]
[1741888718364,0.1249288,80060.0,80059.0,0.00018737]
[1741888718773,0.38857448,80060.0,80059.0,0.00018737]
[1741888719175,0.1249522,80045.0,80044.0,0.1249523]
[1741888719372,0.1249522,80045.0,80044.0,0.1549523]